bitfinex-derivatives/quotes_ETHF0:USTF0_20250816
["timestamp","ask_amount","ask_price","bid_price","bid_amount"]
[1755307650352,0.5485,4472.8,4472.7,0.6701]
[1755307650753,0.0992,4473.1,4472.7,1.0441]
[1755307651054,3.2078,4473.5,4472.9,0.2483]
[1755307651653,0.1392,4473.3,4473.0,0.2483]
[1755307651848,0.0992,4473.1,4473.0,0.2483]
[1755307652045,3.2078,4473.5,4472.8,0.6701]
[1755307652244,0.72471754,4473.4,4472.8,1.0441]
[1755307652449,0.0992,4473.3,4472.8,1.0441]
[1755307652745,0.0992,4473.3,4472.8,0.7958]
[1755307652950,0.4493,4473.2,4472.9,0.2483]
[1755307653161,0.04,4473.3,4472.8,0.7958]
[1755307653454,0.17634468,4473.2,4473.0,0.2483]
[1755307653655,3.2078,4473.1,4473.0,0.2483]
[1755307653854,3.7563,4473.1,4473.0,0.2483]
[1755307654259,3.93276457,4473.1,4473.0,0.2483]
[1755307656452,4.45776457,4473.1,4473.0,0.2483]
[1755307656753,0.17646457,4473.1,4473.0,1.3795]
[1755307656956,3.2078,4473.6,4473.4,0.2483]
[1755307657156,3.9328,4473.6,4473.5,1.0441]
[1755307657351,3.4835,4473.6,4473.5,1.0441]
[1755307657553,3.2078,4473.6,4473.5,1.0441]
[1755307658151,3.2078,4474.1,4473.4,7.80798146]
[1755307658354,0.5760481,4474.0,4473.9,0.44672]
[1755307658561,0.5760481,4474.0,4473.9,1.49082]
[1755307659059,0.5760481,4474.0,4473.9,1.0441]
[1755307659851,0.8517481,4474.0,4473.9,1.0441]
[1755307660464,0.5760481,4474.0,4473.9,1.0441]
[1755307661259,0.8517481,4474.0,4473.9,1.0441]
[1755307661560,0.5760481,4474.0,4473.9,1.7535]
[1755307662260,1.9103481,4474.0,4473.9,1.7535]
[1755307662459,0.725,4473.9,4473.7,0.2483]
[1755307662664,1.9103481,4473.8,4473.7,0.2483]
[1755307663164,1.9103481,4473.8,4473.7,0.4255]
[1755307664363,1.9103481,4473.8,4473.7,1.3795]
[1755307664558,0.5760481,4473.8,4473.7,1.7535]
[1755307664763,0.1,4474.2,4474.1,1.3795]
[1755307664958,0.1,4474.2,4474.1,1.7535]
[1755307665163,3.2078,4475.0,4474.1,1.0441]
[1755307665464,0.57766949,4474.9,4474.8,1.0441]
[1755307666968,1.68946949,4474.9,4474.8,0.2483]
[1755307667570,0.57766949,4474.9,4474.8,1.0441]
[1755307668964,0.7465294,4474.9,4474.8,1.7535]
[1755307669359,0.16885991,4474.9,4474.8,1.7535]
[1755307669566,1.65465991,4474.9,4474.8,1.7535]
[1755307670476,0.16885991,4474.9,4474.8,1.7535]
[1755307671576,0.34065991,4474.9,4474.8,1.7535]
[1755307671776,0.96015991,4474.9,4474.8,1.7535]
[1755307671972,1.23515991,4474.9,4474.8,1.7535]
[1755307672168,1.90285991,4474.9,4474.8,1.3795]
[1755307672473,0.702,4474.6,4474.5,1.8118]
[1755307672776,1.90285991,4474.6,4474.5,1.8118]
[1755307675371,1.90285991,4474.6,4474.5,1.4206]
[1755307675972,0.87085991,4474.6,4474.3,0.7094]
[1755307676165,0.6677,4474.3,4474.1,0.7094]
[1755307676376,1.65465991,4474.2,4474.1,1.1024]
[1755307676572,0.87085991,4474.2,4474.1,1.1024]
[1755307676772,1.65465991,4474.2,4474.1,1.1024]
[1755307676973,1.65465991,4474.2,4474.1,1.8118]
[1755307678075,0.16885991,4474.2,4474.1,1.8118]
[1755307678269,0.3643,4474.8,4474.1,0.7112]
[1755307678479,1.42652584,4474.7,4474.6,0.7112]
[1755307678779,2.45852584,4474.7,4474.6,1.4206]
[1755307679077,2.45852584,4474.7,4474.6,1.8118]
[1755307679280,2.4588172,4474.7,4474.6,1.8118]
[1755307679675,2.4588172,4474.7,4474.6,1.4206]
[1755307679877,1.90285991,4474.7,4474.6,1.4206]
[1755307680279,0.59585991,4474.7,4474.6,1.8118]
[1755307680479,0.16885991,4474.7,4474.6,1.8118]
[1755307680778,0.4195,4475.2,4475.1,0.7094]
[1755307681081,2.21140778,4475.2,4475.1,1.8118]
[1755307681583,2.45960778,4475.2,4475.1,1.8118]
[1755307681780,1.51690778,4475.2,4475.1,1.8118]
[1755307682880,0.96080372,4475.2,4475.1,1.8118]
[1755307684286,0.34130372,4475.2,4475.1,1.8118]
[1755307685182,0.59650372,4475.2,4475.1,1.8118]
[1755307685378,1.23580372,4475.2,4475.1,1.8118]
[1755307685581,1.65530372,4475.2,4475.1,1.8118]
[1755307687285,0.16950372,4475.2,4475.1,1.8118]
[1755307687990,0.16950372,4475.2,4474.2,4.32452]
[1755307687991,0.87150372,4475.2,4474.8,0.4388]
[1755307688181,3.2078,4475.3,4474.7,0.3912]
[1755307688182,1.734,4475.0,4474.9,1.4206]
[1755307688382,1.90350372,4475.0,4474.9,1.8118]
[1755307689490,1.90384182,4475.0,4474.9,1.8118]
[1755307692092,0.702,4474.6,4474.3,2.70539225]
[1755307692290,0.702,4474.4,4474.3,1.4206]
[1755307692486,1.90387544,4474.4,4474.3,1.4206]
[1755307692686,1.90387544,4474.4,4474.3,1.8118]
[1755307695089,0.702,4474.1,4474.0,1.99599225]
[1755307695290,1.734,4474.0,4473.9,1.4206]
[1755307695592,0.7838,4473.5,4473.4,0.7387]
[1755307695892,1.90387544,4473.5,4473.4,1.8118]
[1755307696094,1.90387544,4473.5,4473.4,1.4206]
[1755307696390,1.90387544,4473.5,4473.4,1.8118]
[1755307696890,1.65567544,4473.5,4473.2,1.99599225]
[1755307697098,1.3697,4473.3,4473.2,1.4206]
[1755307697394,3.9098,4474.4,4474.3,1.8118]
[1755307697583,5.11171766,4474.4,4474.3,1.8118]
[1755307700093,5.11171766,4474.4,4474.3,1.4206]
[1755307700997,5.11171766,4474.4,4474.0,0.3658]
[1755307701298,1.7419,4474.1,4474.0,1.7448]
[1755307701593,0.1771,4473.2,4473.1,0.10060025]
[1755307701793,1.91177649,4473.2,4473.1,0.10060025]
[1755307703593,0.87737649,4473.2,4471.4,3.42822556]
[1755307703896,4.2708,4472.4,4472.3,0.7168]
[1755307704100,4.6917,4472.4,4472.3,1.7448]
[1755307705100,4.9497,4472.4,4472.3,1.379]
[1755307705495,4.9497,4472.4,4472.3,1.7448]
[1755307706397,4.9497,4472.4,4471.4,3.42822556]
[1755307706398,4.9497,4472.4,4472.0,0.412]
[1755307706702,1.7419,4472.1,4472.0,1.379]
[1755307706903,1.7419,4472.1,4472.0,1.7448]
[1755307707303,1.7419,4472.1,4472.0,0.7168]
[1755307707494,0.5304,4471.5,4470.8,39.98998146]
[1755307707697,7.80798146,4472.9,4470.9,1.94162]
[1755307707698,0.7075,4471.0,4470.9,1.94162]
[1755307707892,1.0344,4471.4,4470.9,1.7448]
[1755307708097,1.063,4471.3,4471.2,1.7448]
[1755307709199,0.7075,4471.3,4471.2,1.7448]
[1755307710504,1.063,4471.3,4471.2,1.7448]
[1755307711001,1.7419,4471.3,4471.2,0.967]
[1755307711197,1.0344,4471.2,4471.0,0.2502]
[1755307711403,0.7075,4470.9,4470.8,0.2502]
[1755307711597,1.7419,4470.9,4470.7,3.2078]
[1755307711793,0.9655,4470.9,4470.8,1.7448]
[1755307712001,0.7075,4470.9,4470.8,1.7448]
[1755307712194,0.4364,4470.9,4470.8,1.7448]
[1755307712398,0.258,4471.3,4470.8,0.7168]
[1755307712601,0.3555,4471.2,4470.9,0.6622]
[1755307712804,1.063,4471.2,4471.1,0.7168]
[1755307713001,1.063,4471.2,4471.1,1.7448]
[1755307713403,1.4839,4471.2,4471.1,1.7448]
[1755307714004,0.6789,4471.1,4470.1,1.47509]
[1755307714208,1.7419,4471.0,4470.9,1.379]
[1755307714806,1.7419,4471.0,4470.9,1.7448]
[1755307717100,1.7419,4471.0,4470.9,1.3328]
[1755307717504,1.7419,4471.0,4470.9,1.7448]
[1755307721608,1.7419,4471.0,4470.1,0.69729]
[1755307721816,1.4839,4470.9,4470.8,0.1776]
[1755307722114,1.7419,4470.9,4470.8,0.4278]
[1755307722306,1.7419,4470.9,4470.8,1.379]
[1755307722609,1.7419,4470.9,4470.8,1.7448]
[1755307725008,1.3068,4470.9,4470.8,1.7448]
[1755307725313,3.2078,4471.2,4471.1,1.7448]
[1755307725508,3.37629411,4471.2,4471.1,1.7448]
[1755307725813,4.43929411,4471.2,4471.1,1.7448]
[1755307726012,4.86019411,4471.2,4471.1,1.7448]
[1755307726410,5.11819411,4471.2,4471.1,1.7448]
[1755307727113,3.37629411,4471.2,4471.1,1.7448]
[1755307727306,3.2078,4471.7,4471.6,0.7168]
[1755307727609,4.9497,4471.7,4471.6,1.7448]
[1755307727802,4.9497,4471.7,4471.6,0.967]
[1755307728002,4.9497,4471.7,4471.6,1.379]
[1755307728200,5.11840325,4471.7,4471.6,1.7448]
[1755307728912,3.2078,4471.7,4471.6,1.7448]
[1755307729314,3.37663071,4471.7,4471.6,1.7448]
[1755307730113,3.53533071,4471.7,4471.6,1.7448]
[1755307730509,4.17903071,4471.7,4471.6,1.7448]
[1755307730907,3.79513071,4471.7,4471.6,1.7448]
[1755307731908,0.6415,4471.6,4470.9,1.0703]
[1755307732116,1.89503071,4471.5,4471.4,1.3776]
[1755307732305,0.6415,4470.9,4470.8,0.1646]
[1755307732508,0.9426,4470.4,4470.3,1.1305]
[1755307732709,0.9426,4470.4,4470.3,1.7648]
[1755307732710,5.10318091,4470.4,4470.3,1.7648]
[1755307732911,4.86138091,4470.4,4470.3,1.7648]
[1755307733909,1.25388091,4470.4,4470.3,1.7648]
[1755307734109,0.32788091,4470.4,4470.3,1.7648]
[1755307734310,0.16918091,4470.4,4470.3,1.7648]
[1755307734616,3.53568091,4470.4,4470.3,1.7648]
[1755307734813,4.46168091,4470.4,4470.3,1.7648]
[1755307735917,4.86138091,4470.4,4470.3,1.7648]
[1755307736315,4.07778091,4470.4,4470.3,1.7648]
[1755307736511,3.53568091,4470.4,4470.3,1.7648]
[1755307736710,3.53568091,4470.4,4469.8,3.2078]
[1755307736910,1.89538091,4470.3,4470.2,1.7648]
[1755307737120,1.65358091,4470.3,4470.2,1.7648]
[1755307737318,1.25388091,4470.3,4470.2,1.7648]
[1755307737514,0.86998091,4470.3,4470.2,1.7648]
[1755307738017,0.16918091,4470.3,4470.2,1.7648]
[1755307738218,1.25388091,4470.3,4470.2,1.7648]
[1755307738617,0.87023441,4470.3,4470.2,1.7648]
[1755307739120,0.58793441,4470.3,4470.2,1.7648]
[1755307739419,0.16943441,4470.3,4470.2,1.7648]
[1755307740914,0.32815582,4470.3,4470.2,1.7648]
[1755307741822,1.89565582,4470.3,4470.2,1.7648]
[1755307742011,0.87025582,4470.3,4470.2,1.7648]
[1755307743023,1.25415582,4470.3,4470.2,1.7648]
[1755307743320,0.87025582,4470.3,4470.2,1.3776]
[1755307743621,1.65385582,4470.3,4470.2,1.7648]
[1755307743821,1.89565582,4470.3,4470.2,1.7648]
[1755307745424,1.65385582,4470.3,4470.2,1.7648]
[1755307745821,1.25415582,4470.3,4470.2,1.7648]
[1755307746125,4.6517,4471.3,4471.2,1.7648]
[1755307746324,5.14548357,4471.3,4471.2,1.7648]
[1755307746824,4.90368357,4471.3,4471.2,1.7648]
[1755307747020,4.2925,4471.3,4471.2,1.7648]
[1755307747328,3.2078,4471.3,4471.2,1.7648]
[1755307748225,3.3665,4471.3,4471.2,1.7648]
[1755307748625,4.0102,4471.3,4471.2,1.7648]
[1755307749221,0.4185,4471.3,4471.2,1.7648]
[1755307749523,0.7836,4471.6,4471.3,0.6831]
[1755307749826,1.4844,4471.6,4471.5,1.7648]
[1755307750723,1.0847,4471.6,4471.5,1.7648]
[1755307751123,0.3997,4471.9,4471.5,0.6945]
[1755307751325,1.4844,4471.9,4471.8,1.7648]
[1755307753221,0.4185,4471.9,4471.8,0.6945]
[1755307753426,1.0847,4471.9,4471.8,0.6945]
[1755307753626,1.4844,4471.9,4471.8,0.6945]
[1755307753826,1.7262,4471.9,4471.8,1.7648]
[1755307754228,1.7262,4471.9,4471.8,1.3776]
[1755307754930,1.7262,4471.9,4471.8,0.4474]
[1755307755125,0.6415,4471.8,4471.6,0.6831]
[1755307755327,1.7262,4471.7,4471.6,1.1305]
[1755307755529,1.7262,4471.7,4471.6,1.3776]
[1755307755728,1.7262,4471.7,4471.6,1.7648]
[1755307757027,1.4844,4471.7,4471.6,0.6945]
[1755307757235,1.7262,4471.7,4471.6,1.3776]
[1755307757730,1.7262,4471.7,4471.6,1.7648]
[1755307758129,1.88842675,4471.7,4471.6,1.7648]
[1755307761931,1.88842919,4471.7,4471.6,1.7648]
[1755307762332,0.16222919,4471.7,4471.6,1.7648]
[1755307763937,0.16225524,4471.9,4471.6,1.7648]
[1755307764138,0.16225524,4471.8,4471.7,1.7217]
[1755307764334,0.16225524,4471.9,4471.7,0.6801]
[1755307764538,1.22705524,4471.9,4471.8,1.0727]
[1755307765040,1.22705524,4471.9,4471.8,1.7217]
[1755307766039,1.64015524,4471.9,4471.8,1.7217]
[1755307766541,1.90175524,4471.9,4471.8,1.7217]
[1755307766741,1.90176303,4471.9,4471.8,1.7217]
[1755307767145,0.1726,4471.0,4470.9,0.824]
[1755307767345,4.9473,4471.0,4470.9,1.7217]
[1755307768345,1.7395,4471.0,4470.9,1.7217]
[1755307768547,1.4779,4471.0,4470.9,1.7217]
[1755307769451,1.0648,4471.0,4470.9,1.7217]
[1755307771146,0.3729,4471.4,4471.0,0.649]
[1755307771352,0.16235121,4471.3,4471.2,1.7217]
[1755307774853,3.2078,4471.7,4471.6,0.6801]
[1755307775054,3.37032515,4471.7,4471.6,1.7217]
[1755307775247,3.3804,4471.7,4471.6,1.7217]
[1755307775443,3.91588253,4471.7,4471.6,1.7217]
[1755307775651,0.70808253,4471.7,4471.6,1.7217]
[1755307777154,0.96298253,4471.7,4471.6,1.7217]
[1755307780057,1.64048253,4471.7,4471.6,1.7217]
[1755307780452,1.90208253,4471.7,4471.6,1.7217]
[1755307781159,0.59008253,4471.7,4471.6,1.7217]
[1755307781358,1.64048253,4471.7,4471.6,1.7217]
[1755307781559,1.64048253,4471.7,4471.6,3.7306733]
[1755307781759,1.90208253,4471.7,4471.6,3.7306733]
[1755307782554,1.90208253,4471.7,4471.6,1.7217]
[1755307784055,1.90215384,4471.7,4471.6,1.7217]
[1755307786461,1.90772792,4471.7,4471.6,1.7217]
[1755307790659,1.0615,4471.3,4471.2,2.0089733]
[1755307790861,1.0615,4471.3,4471.2,2.1793733]
[1755307790862,1.8562891,4471.3,4471.2,2.1793733]
[1755307791064,1.8562891,4471.3,4471.2,1.6802]
[1755307791769,1.6942,4471.3,4471.2,3.68905649]
[1755307791962,1.6942,4471.3,4471.2,1.6802]
[1755307792259,1.85629128,4471.3,4471.2,2.00884839]
[1755307792458,1.85629128,4471.3,4471.1,2.00884839]
[1755307792666,1.85629428,4471.2,4471.1,2.00884839]
[1755307793860,0.6293,4471.1,4471.0,2.00884839]
[1755307794060,0.6293,4471.0,4470.8,2.00884839]
[1755307794264,1.85629428,4470.9,4470.6,0.239]
[1755307794463,3.2078,4471.1,4470.6,0.6426]
[1755307794464,1.6942,4470.7,4470.6,0.6426]
[1755307794663,1.85629428,4470.7,4470.6,1.6802]
[1755307795567,1.85632005,4470.7,4470.6,1.6802]
[1755307796869,1.6942,4470.7,4470.6,1.6802]
[1755307797569,0.6742,4470.5,4470.4,2.00884839]
[1755307797769,0.6742,4470.2,4470.1,0.813]
[1755307797968,1.85624415,4470.2,4470.1,1.6802]
[1755307799274,1.6942,4470.2,4470.1,1.6802]
[1755307800574,0.6742,4469.9,4469.8,0.6426]
[1755307800770,0.6742,4469.9,4469.6,2.00884839]
[1755307800771,1.0649,4469.6,4469.5,2.00884839]
[1755307801077,1.6942,4469.0,4468.9,1.0176]
[1755307801276,1.6942,4469.0,4468.9,1.6802]
[1755307802175,0.8005,4469.0,4468.9,1.6802]
[1755307802374,0.4098,4469.0,4468.9,1.6802]
[1755307803679,0.8005,4469.0,4468.9,1.6802]
[1755307803869,1.6942,4469.0,4468.9,1.6802]
[1755307804479,1.6942,4469.0,4468.9,0.9146]
[1755307804679,1.6942,4469.0,4468.9,0.4294]
[1755307805183,1.6942,4469.0,4468.9,0.6684]
[1755307805983,1.6942,4468.9,4468.8,1.3182]
[1755307806285,3.2078,4469.3,4468.8,0.6756]
[1755307806475,3.2078,4469.3,4469.2,1.6802]
[1755307806671,3.3789,4469.3,4469.2,1.6802]
[1755307806875,4.66,4469.3,4469.2,1.6802]
[1755307807075,4.902,4469.3,4469.2,1.6802]
[1755307807275,4.902,4469.3,4468.8,0.6426]
[1755307807484,3.882,4469.3,4469.2,1.6802]
[1755307807682,4.902,4469.3,4469.2,1.6802]
[1755307808080,1.02,4469.2,4468.7,1.0046]
[1755307808277,1.6942,4468.8,4468.7,1.6802]
[1755307808477,4.902,4468.8,4468.3,0.362]
[1755307808679,1.6942,4468.4,4468.3,1.6802]
[1755307808877,1.6942,4468.4,4468.3,1.3182]
[1755307809378,0.4098,4468.0,4467.9,1.6802]
[1755307809581,3.882,4468.3,4468.2,0.6756]
[1755307809880,4.66,4468.3,4468.2,1.6802]
[1755307810275,4.902,4468.3,4468.2,1.6802]
[1755307810678,3.2078,4468.8,4468.2,4.27926885]
[1755307810878,0.242,4469.3,4468.7,4.27926885]
[1755307810879,3.5985,4469.3,4468.7,4.27926885]
[1755307811182,4.2727,4469.3,4469.2,0.6756]
[1755307811485,3.2078,4469.3,4469.2,1.3182]
[1755307811678,3.2078,4469.9,4469.8,1.0792]
[1755307811874,4.2727,4469.9,4469.8,1.6802]
[1755307812077,4.902,4469.9,4469.8,1.6802]
[1755307813077,4.2727,4469.9,4469.8,1.6802]
[1755307813586,3.2078,4469.9,4469.8,1.6802]
[1755307815179,4.902,4469.9,4469.8,1.3182]
[1755307815374,4.902,4469.9,4469.0,0.4036]
[1755307815375,1.3035,4469.7,4469.0,0.4036]
[1755307815573,0.4098,4469.1,4469.0,1.6802]
[1755307815889,0.8005,4469.1,4469.0,1.6802]
[1755307816081,1.6942,4469.1,4469.0,1.6802]
[1755307816384,3.882,4469.9,4469.8,1.0376]
[1755307816579,4.902,4469.9,4469.8,1.6802]
[1755307816774,3.882,4469.9,4469.8,1.6802]
[1755307817383,4.2727,4469.9,4469.8,1.6802]
[1755307818074,0.1711,4469.4,4469.3,0.813]
[1755307818278,0.6742,4469.4,4469.3,1.6802]
[1755307818477,1.7166,4469.4,4468.9,3.2078]
[1755307818678,1.6958,4469.1,4469.0,1.6989]
[1755307819586,1.4359,4469.8,4469.7,1.6989]
[1755307819880,3.2078,4469.9,4469.7,1.6989]
[1755307820080,3.6091,4469.9,4469.8,1.3331]
[1755307820278,3.6091,4469.9,4469.8,1.6989]
[1755307821884,3.8612,4469.9,4469.8,1.6989]
[1755307822087,4.2437,4469.9,4469.8,1.6989]
[1755307822385,4.6437,4469.9,4469.8,1.6989]
[1755307822581,4.9036,4469.9,4469.8,1.6989]
[1755307822976,4.9036,4469.9,4469.3,2.59906885]
[1755307823184,1.4359,4469.1,4469.0,1.6989]
[1755307823387,1.6958,4469.1,4469.0,1.6989]
[1755307823779,1.6958,4469.1,4468.9,3.2078]
[1755307823983,1.4577,4469.0,4468.9,3.2078]
[1755307824183,1.6958,4469.0,4468.9,4.1335]
[1755307824383,1.6958,4469.0,4468.9,4.9067]
[1755307824585,1.4359,4469.0,4468.9,4.9067]
[1755307826187,1.4359,4469.0,4468.9,1.6989]
[1755307827486,1.6958,4469.0,4468.9,1.6989]
[1755307829489,0.6534,4469.0,4468.9,0.1604]
[1755307829684,0.81575772,4469.0,4468.6,2.00884839]
[1755307829985,0.6599,4468.6,4468.2,2.00884839]
[1755307830188,3.2078,4469.6,4468.5,2.59906885]
[1755307830491,0.4013,4469.2,4469.1,3.52476885]
[1755307830896,0.4013,4469.2,4469.1,3.93216885]
[1755307831088,0.4013,4469.2,4469.1,4.29796885]
[1755307831290,3.8612,4469.6,4469.5,0.6699]
[1755307831486,4.02351497,4469.6,4469.5,1.6989]
[1755307831888,3.37011497,4469.6,4469.5,4.29796885]
[1755307832088,3.2078,4469.6,4469.5,4.29796885]
[1755307832285,3.371,4469.6,4469.5,4.29796885]
[1755307832488,4.2437,4469.6,4469.5,1.6989]
[1755307832687,4.6437,4469.6,4469.5,1.6989]
[1755307833087,3.8612,4469.6,4469.5,1.6989]
[1755307833287,3.6091,4469.6,4469.5,1.6989]
[1755307833889,4.6437,4469.6,4469.5,1.6989]
[1755307834090,4.9036,4469.6,4469.5,1.6989]
[1755307834389,3.8612,4469.6,4469.2,2.41624839]
[1755307834594,1.6958,4469.3,4469.1,2.00884839]
[1755307834796,1.6958,4469.3,4469.2,1.6989]
[1755307834982,1.0359,4469.3,4469.2,1.6989]
[1755307835188,0.4013,4469.3,4469.2,1.6989]
[1755307835390,3.371,4469.6,4469.5,0.6699]
[1755307835587,3.2078,4469.6,4469.5,1.6989]
[1755307839496,1.6958,4470.6,4470.5,0.1604]
[1755307839700,1.8581307,4470.6,4470.5,0.8236]
[1755307840691,0.6534,4470.3,4470.2,0.9336]
[1755307840892,1.8581307,4470.3,4470.2,0.5678]
[1755307841595,1.8581307,4470.3,4470.2,0.1604]
[1755307841994,1.8581307,4470.3,4470.2,0.4162]
[1755307842593,0.6599,4470.2,4469.9,0.6632]
[1755307842790,1.6958,4469.6,4469.5,2.2634339]
[1755307842990,1.6958,4469.6,4469.5,1.0772]
[1755307843496,1.6958,4469.6,4469.5,1.6989]
[1755307844088,0.4013,4469.6,4469.5,4.29796885]
[1755307844294,0.3825,4470.4,4469.6,1.029]
[1755307844596,0.3825,4470.4,4469.5,6.50760885]
[1755307844597,3.8612,4470.0,4469.9,1.3331]
[1755307844896,5.06601796,4470.0,4469.9,1.6989]
[1755307851600,1.85821796,4470.0,4469.9,1.6989]
[1755307851800,1.8574583,4470.0,4469.9,1.6989]
[1755307852997,0.5629583,4470.0,4469.9,1.6989]
[1755307853696,0.1616583,4470.0,4469.9,4.29796885]
[1755307853895,35.7866,4471.0,4470.9,0.4222]
[1755307854205,36.18576272,4471.0,4470.9,1.704]
[1755307854597,36.3978,4471.0,4470.9,1.704]
[1755307854797,36.55940821,4471.0,4470.9,1.704]
[1755307855199,0.6723,4470.7,4470.6,1.704]
[1755307855705,1.6583,4470.7,4470.6,1.704]
[1755307856696,0.6723,4470.6,4470.5,0.4222]
[1755307856901,1.046,4470.6,4470.5,1.0683]
[1755307857102,1.046,4470.6,4470.5,1.3238]
[1755307857405,1.6583,4470.6,4470.5,1.704]
[1755307859202,0.4166,4470.6,4470.5,1.704]
[1755307859508,1.046,4470.9,4470.8,0.6777]
[1755307859706,0.3737,4471.3,4470.8,0.6777]
[1755307859906,0.16148762,4471.2,4470.5,5.2154339]
[1755307860109,0.3748,4471.2,4470.5,2.0076339]
[1755307860309,0.4166,4470.7,4470.6,1.704]
[1755307861813,1.4208,4470.7,4470.6,1.704]
[1755307862009,1.6583,4470.7,4470.6,1.3238]
[1755307862216,1.6583,4470.7,4470.6,0.1746]
[1755307862417,1.6583,4470.7,4470.6,1.3238]
[1755307862618,1.6583,4470.7,4470.6,1.704]
[1755307865711,3.2078,4471.5,4470.6,1.704]
[1755307866016,1.4208,4471.3,4471.2,1.704]
[1755307866213,1.81981513,4471.3,4471.2,1.704]
[1755307866615,1.2846,4470.5,4470.4,2.0076339]
[1755307866923,1.6583,4470.1,4469.8,0.6461]
[1755307867109,1.4052,4470.0,4469.9,1.3238]
[1755307867315,1.6583,4470.0,4469.9,1.3238]
[1755307867619,1.6583,4470.0,4469.9,1.704]
[1755307868516,3.60898634,4470.0,4469.4,0.2462]
[1755307868820,1.6583,4470.0,4469.9,1.3238]
[1755307869019,1.81979131,4470.0,4469.9,1.3238]
[1755307870117,0.83379131,4470.0,4469.6,1.0263]
[1755307870317,5.80686885,4470.3,4469.6,1.704]
[1755307870318,1.4208,4469.7,4469.6,1.704]
[1755307870515,3.2078,4470.3,4469.7,0.6461]
[1755307870719,1.20751796,4470.2,4470.1,1.704]
[1755307870915,1.81981796,4470.2,4470.1,1.704]
[1755307871120,1.81981796,4470.2,4470.1,1.3238]
[1755307871620,1.81981796,4470.2,4470.1,1.704]
[1755307871621,1.20751796,4470.2,4470.1,1.704]
[1755307874222,1.58231796,4470.2,4470.1,1.704]
[1755307876622,1.58520809,4470.2,4470.1,1.704]
[1755307877024,1.82270809,4470.2,4470.1,1.704]
[1755307877523,0.6123,4470.1,4469.6,2.2538339]
[1755307877726,1.2846,4469.7,4469.3,3.454]
[1755307877923,0.2531,4469.5,4469.4,0.6684]
[1755307878129,1.6583,4469.5,4469.4,1.3238]
[1755307878729,1.6583,4469.5,4469.4,1.6907]
[1755307879530,1.6583,4469.5,4469.4,1.3238]
[1755307880531,1.6583,4469.5,4469.4,1.6907]
[1755307882733,1.4208,4469.5,4469.4,1.6907]
[1755307882930,1.046,4469.5,4469.4,1.6907]
[1755307884027,4.2341,4470.3,4470.2,0.6637]
[1755307884233,5.27429811,4470.3,4470.2,1.6466]
[1755307885533,0.16439702,4470.3,4470.2,1.6466]
[1755307885729,1.27505542,4470.7,4470.3,0.3669]
[1755307885928,1.27505542,4470.7,4470.3,1.0396]
[1755307885929,1.2703,4470.4,4470.3,1.0396]
[1755307886134,1.43470173,4470.4,4470.3,1.0396]
[1755307886433,1.81960173,4470.4,4470.3,1.0396]
[1755307886934,1.81960173,4470.4,4470.3,1.2797]
[1755307887831,1.6552,4470.2,4470.1,0.616]
[1755307888035,1.81960173,4470.2,4469.6,2.0076339]
[1755307888227,0.6637,4470.0,4469.9,1.2797]
[1755307888429,1.6552,4470.0,4469.9,1.2797]
[1755307888626,1.6552,4470.0,4469.9,1.6466]
[1755307889438,1.6552,4470.0,4469.9,1.0396]
[1755307889638,1.8196564,4470.0,4469.6,2.9905339]
[1755307889832,0.6637,4469.7,4469.6,3.0382339]
[1755307890032,1.4112,4469.7,4469.6,1.0306]
[1755307890331,1.0486,4469.7,4469.6,1.6466]
[1755307890537,3.6161,4470.3,4470.2,0.6637]
[1755307890727,0.57276438,4470.3,4470.2,1.6466]
[1755307892134,1.57566438,4470.3,4470.2,1.6466]
[1755307893540,0.16446438,4470.3,4470.2,1.6466]
[1755307894342,0.00475542,4470.7,4470.6,1.6466]
[1755307894536,3.2078,4471.7,4471.6,0.1729]
[1755307894738,3.61944493,4471.7,4471.6,1.6466]
[1755307894940,0.41164493,4471.7,4471.6,1.6466]
[1755307895235,0.16453056,4471.7,4471.6,1.6466]
[1755307895443,1.81973056,4471.7,4471.6,1.2797]
[1755307895833,1.45713056,4471.7,4471.6,1.6466]
[1755307896036,1.81973056,4471.7,4471.6,1.6466]
[1755307896232,1.81956225,4471.7,4471.6,1.2797]
[1755307896432,0.16436225,4471.7,4471.6,1.2797]
[1755307896737,0.16436225,4471.7,4471.6,1.6466]
[1755307896938,0.95756225,4471.7,4471.6,1.6466]
[1755307897136,1.0486,4471.7,4471.6,1.6466]
[1755307897533,0.4083,4471.7,4471.6,1.6466]
[1755307897734,0.4083,4471.9,4471.8,0.6637]
[1755307897942,0.95736322,4471.9,4471.8,0.6637]
[1755307898341,0.95736322,4471.9,4471.8,1.6466]
[1755307898838,1.57536322,4471.9,4471.8,1.6466]
[1755307899037,1.81936322,4471.9,4471.8,1.6466]
[1755307899238,1.6552,4471.9,4471.8,1.6466]
[1755307899840,1.4112,4471.9,4471.8,1.6466]
[1755307900240,4.863,4471.9,4471.4,0.2558]
[1755307900450,0.6637,4471.4,4471.3,1.2797]
[1755307900644,1.6552,4471.4,4471.3,1.6466]
[1755307901043,1.4112,4471.4,4471.3,1.6466]
[1755307901442,1.0486,4471.4,4471.3,1.6466]
[1755307901637,3.2078,4471.9,4471.3,0.6637]
[1755307901838,0.6637,4472.2,4471.0,3.4636]
[1755307902045,0.9915,4472.0,4471.0,3.2078]
[1755307902244,0.7475,4471.9,4471.2,0.2558]
[1755307902448,0.3626,4471.9,4471.3,0.9829]
[1755307902649,1.0263,4471.9,4471.8,0.6637]
[1755307902948,1.2703,4471.9,4471.8,1.2797]
[1755307903143,1.6552,4471.9,4471.8,1.2797]
[1755307905249,1.6552,4471.9,4471.8,1.6466]